[Event "Late-Titled-Tuesday-Blitz-September-05-2023"]
[Site "Chess.com"]
[Date "2023.09.05"]
[Round "3"]
[White "GM_dmitrij"]
[Black "sofaceindisguise"]
[Result "1-0"]
[WhiteElo "3030"]
[BlackElo "2731"]
[TimeControl "180+1"]
[EndTime "14:29:54 PDT"]
[Termination "GM_dmitrij won on time"]

1. e4 {[%clk 0:03:00.9]} 1... c5 {[%clk 0:02:58.6]} 2. Nf3 {[%clk 0:03:00.8]}
2... e6 {[%clk 0:02:59.5]} 3. c3 {[%clk 0:02:58.9]} 3... d5 {[%clk 0:02:57.3]}
4. exd5 {[%clk 0:02:59.8]} 4... exd5 {[%clk 0:02:57]} 5. d4 {[%clk 0:02:59.9]}
5... cxd4 {[%clk 0:02:56.5]} 6. Nxd4 {[%clk 0:02:59.1]} 6... Be7 {[%clk
0:02:51]} 7. Bb5+ {[%clk 0:02:56.9]} 7... Bd7 {[%clk 0:02:51]} 8. O-O {[%clk
0:02:55]} 8... Nf6 {[%clk 0:02:46.4]} 9. Bxd7+ {[%clk 0:02:54.3]} 9... Qxd7
{[%clk 0:02:46.2]} 10. Nd2 {[%clk 0:02:51.2]} 10... O-O {[%clk 0:02:46.6]} 11.
N2f3 {[%clk 0:02:51.4]} 11... Nc6 {[%clk 0:02:47.5]} 12. Re1 {[%clk 0:02:51.4]}
12... Rfe8 {[%clk 0:02:47.7]} 13. Bg5 {[%clk 0:02:51.2]} 13... Ne4 {[%clk
0:02:47.2]} 14. Bxe7 {[%clk 0:02:50.9]} 14... Rxe7 {[%clk 0:02:48.1]} 15. Qc2
{[%clk 0:02:50.1]} 15... Rae8 {[%clk 0:02:48]} 16. Re3 {[%clk 0:02:47.1]} 16...
Nd6 {[%clk 0:02:42.1]} 17. Rxe7 {[%clk 0:02:46.1]} 17... Rxe7 {[%clk 0:02:33.4]}
18. h3 {[%clk 0:02:44.6]} 18... g6 {[%clk 0:02:32.8]} 19. Rd1 {[%clk 0:02:44.4]}
19... Qe8 {[%clk 0:02:07.8]} 20. Qb3 {[%clk 0:02:06.3]} 20... Nc4 {[%clk
0:01:32.2]} 21. Qc2 {[%clk 0:01:34.9]} 21... Nxd4 {[%clk 0:01:28.7]} 22. Nxd4
{[%clk 0:01:35.8]} 22... Re1+ {[%clk 0:01:28.6]} 23. Rxe1 {[%clk 0:01:36.4]}
23... Qxe1+ {[%clk 0:01:29.3]} 24. Kh2 {[%clk 0:01:37.3]} 24... Nd2 {[%clk
0:01:23.4]} 25. Nf3 {[%clk 0:01:04.3]} 25... Nxf3+ {[%clk 0:00:59.9]} 26. gxf3
{[%clk 0:01:05.2]} 26... Qe5+ {[%clk 0:00:59.8]} 27. Kg2 {[%clk 0:01:04.6]}
27... d4 {[%clk 0:01:00.2]} 28. cxd4 {[%clk 0:01:01]} 28... Qg5+ {[%clk
0:00:51.1]} 29. Kf1 {[%clk 0:00:57.4]} 29... Qb5+ {[%clk 0:00:49.7]} 30. Qe2
{[%clk 0:00:48.3]} 30... Qd7 {[%clk 0:00:46.6]} 31. Qe4 {[%clk 0:00:26.1]} 31...
Qxh3+ {[%clk 0:00:44.2]} 32. Kg1 {[%clk 0:00:26.7]} 32... Qd7 {[%clk 0:00:40.9]}
33. d5 {[%clk 0:00:25.4]} 33... Qd6 {[%clk 0:00:36.9]} 34. f4 {[%clk 0:00:24.3]}
34... Kf8 {[%clk 0:00:35.5]} 35. Qd4 {[%clk 0:00:22.9]} 35... b6 {[%clk
0:00:31.5]} 36. Kg2 {[%clk 0:00:21.6]} 36... Ke7 {[%clk 0:00:30.6]} 37. Kf3
{[%clk 0:00:21.8]} 37... h5 {[%clk 0:00:30.4]} 38. b4 {[%clk 0:00:20.9]} 38...
Kd7 {[%clk 0:00:27.4]} 39. a3 {[%clk 0:00:18.5]} 39... a5 {[%clk 0:00:20.4]} 40.
Qc4 {[%clk 0:00:16.8]} 40... axb4 {[%clk 0:00:20.1]} 41. axb4 {[%clk 0:00:17.7]}
41... Qc7 {[%clk 0:00:20.3]} 42. Qd4 {[%clk 0:00:16.4]} 42... Qd6 {[%clk
0:00:14.5]} 43. Kg3 {[%clk 0:00:15]} 43... Kc7 {[%clk 0:00:09.3]} 44. Kf3 {[%clk
0:00:14.7]} 44... Kd7 {[%clk 0:00:09.9]} 45. Qc4 {[%clk 0:00:14.8]} 45... Qc7
{[%clk 0:00:07.7]} 46. Qe4 {[%clk 0:00:15.1]} 46... Qd6 {[%clk 0:00:08.1]} 47.
Kg2 {[%clk 0:00:14.7]} 47... Kc7 {[%clk 0:00:08.2]} 48. Qc4+ {[%clk 0:00:14.2]}
48... Kd7 {[%clk 0:00:08.8]} 49. Qb5+ {[%clk 0:00:14.7]} 49... Ke7 {[%clk
0:00:08.6]} 50. Kf3 {[%clk 0:00:15.6]} 50... Qc7 {[%clk 0:00:07.7]} 51. Ke4
{[%clk 0:00:15.6]} 51... Qd6 {[%clk 0:00:07.6]} 52. Qc4 {[%clk 0:00:14.6]} 52...
h4 {[%clk 0:00:08.2]} 53. Kf3 {[%clk 0:00:14.4]} 53... f5 {[%clk 0:00:06]} 54.
Qd4 {[%clk 0:00:14.1]} 54... Kd7 {[%clk 0:00:05.7]} 55. Qg7+ {[%clk 0:00:14]}
55... Qe7 {[%clk 0:00:06.3]} 56. Qd4 {[%clk 0:00:11.5]} 56... Qe4+ {[%clk
0:00:04.6]} 57. Qxe4 {[%clk 0:00:09.2]} 1-0

[Event "Late-Titled-Tuesday-Blitz-September-05-2023"]
[Site "Chess.com"]
[Date "2023.09.05"]
[Round "3"]
[White "chessS1r"]
[Black "Tonychess32"]
[Result "1-0"]
[WhiteElo "2594"]
[BlackElo "2412"]
[TimeControl "180+1"]
[EndTime "14:29:54 PDT"]
[Termination "chessS1r won on time"]

1. d4 {[%clk 0:03:00.9]} 1... b6 {[%clk 0:03:00.3]} 2. e4 {[%clk 0:03:00.3]}
2... Bb7 {[%clk 0:02:59.7]} 3. Bd3 {[%clk 0:02:59.8]} 3... g6 {[%clk 0:03:00.5]}
4. Nf3 {[%clk 0:02:57.6]} 4... Bg7 {[%clk 0:02:59.3]} 5. O-O {[%clk 0:02:54.5]}
5... d6 {[%clk 0:02:57.5]} 6. c3 {[%clk 0:02:54.3]} 6... Nf6 {[%clk 0:02:57]} 7.
Re1 {[%clk 0:02:53.6]} 7... O-O {[%clk 0:02:57.1]} 8. e5 {[%clk 0:02:50]} 8...
Ne8 {[%clk 0:02:51.2]} 9. e6 {[%clk 0:02:45.8]} 9... f5 {[%clk 0:02:25.3]} 10.
Bf4 {[%clk 0:02:27.6]} 10... c6 {[%clk 0:02:15.1]} 11. Nbd2 {[%clk 0:02:24.7]}
11... Na6 {[%clk 0:02:15.7]} 12. Nf1 {[%clk 0:02:22.6]} 12... Nac7 {[%clk
0:02:16]} 13. Qe2 {[%clk 0:02:16.4]} 13... Bc8 {[%clk 0:02:13]} 14. Ng5 {[%clk
0:02:14.4]} 14... Nd5 {[%clk 0:02:02.4]} 15. Bd2 {[%clk 0:02:10.8]} 15... Nec7
{[%clk 0:01:42.1]} 16. h4 {[%clk 0:02:06.1]} 16... h6 {[%clk 0:01:36.9]} 17. Nf7
{[%clk 0:02:06.3]} 17... Rxf7 {[%clk 0:01:37.5]} 18. exf7+ {[%clk 0:02:06.8]}
18... Kxf7 {[%clk 0:01:38.4]} 19. Ng3 {[%clk 0:01:59.9]} 19... e6 {[%clk
0:01:34.7]} 20. c4 {[%clk 0:01:53.5]} 20... Nf6 {[%clk 0:01:34.9]} 21. Bc3
{[%clk 0:01:54.1]} 21... Ng4 {[%clk 0:01:32.3]} 22. h5 {[%clk 0:01:50.2]} 22...
Qh4 {[%clk 0:01:20.7]} 23. hxg6+ {[%clk 0:01:49.2]} 23... Kxg6 {[%clk
0:01:19.6]} 24. Nf1 {[%clk 0:01:45.4]} 24... Bd7 {[%clk 0:01:12.8]} 25. g3
{[%clk 0:01:36]} 25... Qh3 {[%clk 0:01:07.5]} 26. f3 {[%clk 0:01:35.3]} 26...
Nf6 {[%clk 0:01:05.6]} 27. Qc2 {[%clk 0:01:22.8]} 27... Nh5 {[%clk 0:01:00.8]}
28. Re2 {[%clk 0:01:22.1]} 28... Nxg3 {[%clk 0:00:38.8]} 29. Nxg3 {[%clk
0:01:21.6]} 29... Kf7 {[%clk 0:00:32]} 30. Rg2 {[%clk 0:01:14.7]} 30... Bf6
{[%clk 0:00:27.8]} 31. d5 {[%clk 0:01:04.8]} 31... Rg8 {[%clk 0:00:13.1]} 32.
Qf2 {[%clk 0:00:45.3]} 32... Bh4 {[%clk 0:00:11.7]} 33. Be1 {[%clk 0:00:36.3]}
33... f4 {[%clk 0:00:11.3]} 34. Qd4 {[%clk 0:00:29.6]} 34... e5 {[%clk 0:00:10]}
35. Qe4 {[%clk 0:00:25.8]} 35... Bxg3 {[%clk 0:00:09.9]} 36. Bxg3 {[%clk
0:00:18.2]} 36... Rxg3 {[%clk 0:00:08.4]} 37. Qh7+ {[%clk 0:00:17.1]} 37... Ke8
{[%clk 0:00:09.2]} 38. Qh8+ {[%clk 0:00:15.6]} 38... Ke7 {[%clk 0:00:09.6]} 39.
Qh7+ {[%clk 0:00:14.2]} 39... Kd8 {[%clk 0:00:10.5]} 40. Bf1 {[%clk 0:00:12.7]}
40... cxd5 {[%clk 0:00:07.6]} 41. Qg8+ {[%clk 0:00:11.4]} 41... Be8 {[%clk
0:00:07.3]} 42. Rxg3 {[%clk 0:00:09.7]} 42... fxg3 {[%clk 0:00:07.5]} 43. Bxh3
{[%clk 0:00:08.8]} 43... dxc4 {[%clk 0:00:04]} 44. Qxg3 {[%clk 0:00:08.7]} 44...
Nd5 {[%clk 0:00:02.8]} 45. Rd1 {[%clk 0:00:08.1]} 45... Nf4 {[%clk 0:00:03.4]}
46. Rxd6+ {[%clk 0:00:08]} 46... Kc7 {[%clk 0:00:04]} 47. Rd2 {[%clk 0:00:06.9]}
47... Bd7 {[%clk 0:00:02.5]} 48. Rxd7+ {[%clk 0:00:03.4]} 48... Kc6 {[%clk
0:00:02.5]} 49. Rd2 {[%clk 0:00:04.3]} 49... c3 {[%clk 0:00:02.5]} 50. bxc3
{[%clk 0:00:04.1]} 50... Kc5 {[%clk 0:00:03.4]} 51. Bf1 {[%clk 0:00:04.2]} 51...
b5 {[%clk 0:00:02.4]} 52. Qf2+ {[%clk 0:00:04.7]} 52... Kc6 {[%clk 0:00:02.4]}
53. Qe3 {[%clk 0:00:05.4]} 53... Ng6 {[%clk 0:00:02.3]} 54. Qe4+ {[%clk
0:00:05.8]} 54... Kc7 {[%clk 0:00:01.6]} 55. Qxg6 {[%clk 0:00:06.7]} 1-0

[Event "Late-Titled-Tuesday-Blitz-September-05-2023"]
[Site "Chess.com"]
[Date "2023.09.05"]
[Round "3"]
[White "Goryachkina"]
[Black "Eloist"]
[Result "1-0"]
[WhiteElo "2662"]
[BlackElo "2463"]
[TimeControl "180+1"]
[EndTime "14:29:58 PDT"]
[Termination "Goryachkina won on time"]

1. e4 {[%clk 0:02:59.2]} 1... e6 {[%clk 0:02:55]} 2. d4 {[%clk 0:02:55.3]} 2...
d5 {[%clk 0:02:55.1]} 3. Bd3 {[%clk 0:02:55.3]} 3... dxe4 {[%clk 0:02:54.7]} 4.
Bxe4 {[%clk 0:02:55.6]} 4... Nf6 {[%clk 0:02:55.2]} 5. Bf3 {[%clk 0:02:56]} 5...
c5 {[%clk 0:02:55.4]} 6. Ne2 {[%clk 0:02:54.3]} 6... Nc6 {[%clk 0:02:54.9]} 7.
Be3 {[%clk 0:02:53.2]} 7... cxd4 {[%clk 0:02:55.1]} 8. Nxd4 {[%clk 0:02:52.4]}
8... Ne5 {[%clk 0:02:55.2]} 9. Be2 {[%clk 0:02:37.4]} 9... Nd5 {[%clk
0:02:29.5]} 10. Bc1 {[%clk 0:02:14.3]} 10... Be7 {[%clk 0:02:27.2]} 11. O-O
{[%clk 0:02:14.1]} 11... O-O {[%clk 0:02:26.6]} 12. c4 {[%clk 0:02:13]} 12...
Nb4 {[%clk 0:02:18.4]} 13. a3 {[%clk 0:02:08.7]} 13... Nbc6 {[%clk 0:02:15.9]}
14. Nxc6 {[%clk 0:02:00.4]} 14... Nxc6 {[%clk 0:02:13.2]} 15. Nc3 {[%clk
0:01:58.3]} 15... Nd4 {[%clk 0:02:07.7]} 16. Be3 {[%clk 0:01:51.1]} 16... Nxe2+
{[%clk 0:02:04.4]} 17. Qxe2 {[%clk 0:01:52]} 17... Bd7 {[%clk 0:01:57.4]} 18.
Rfd1 {[%clk 0:01:52]} 18... Qc7 {[%clk 0:01:57]} 19. Rac1 {[%clk 0:01:52.2]}
19... Bc6 {[%clk 0:01:30.8]} 20. Bd4 {[%clk 0:01:44.2]} 20... Qf4 {[%clk
0:01:20.1]} 21. b4 {[%clk 0:01:07.8]} 21... Rfd8 {[%clk 0:01:15]} 22. Be3 {[%clk
0:01:03.6]} 22... Qf6 {[%clk 0:01:07.7]} 23. Rxd8+ {[%clk 0:00:57.8]} 23... Rxd8
{[%clk 0:01:00.4]} 24. c5 {[%clk 0:00:57.6]} 24... a6 {[%clk 0:00:54.1]} 25. a4
{[%clk 0:00:51.8]} 25... Qg6 {[%clk 0:00:52.6]} 26. f3 {[%clk 0:00:48.7]} 26...
Qd3 {[%clk 0:00:41.6]} 27. Qxd3 {[%clk 0:00:41.4]} 27... Rxd3 {[%clk 0:00:40.8]}
28. Kf2 {[%clk 0:00:36.7]} 28... Bf6 {[%clk 0:00:32.8]} 29. Ne4 {[%clk
0:00:32.5]} 29... Bxe4 {[%clk 0:00:32.5]} 30. fxe4 {[%clk 0:00:32]} 30... Rxe3
{[%clk 0:00:32.3]} 31. c6 {[%clk 0:00:26.9]} 31... bxc6 {[%clk 0:00:22.8]} 32.
Rxc6 {[%clk 0:00:26.4]} 32... Rc3 {[%clk 0:00:18.7]} 33. Rxa6 {[%clk 0:00:24.7]}
33... h5 {[%clk 0:00:18.4]} 34. b5 {[%clk 0:00:24.4]} 34... Rb3 {[%clk
0:00:14.8]} 35. Ke2 {[%clk 0:00:20.3]} 35... Bd4 {[%clk 0:00:12.7]} 36. Rd6
{[%clk 0:00:19.4]} 36... e5 {[%clk 0:00:12.6]} 37. Rd5 {[%clk 0:00:19.3]} 37...
Kf8 {[%clk 0:00:11.8]} 38. a5 {[%clk 0:00:19.2]} 38... Ke7 {[%clk 0:00:11.2]}
39. b6 {[%clk 0:00:17.7]} 39... Ke6 {[%clk 0:00:11.2]} 40. Rd8 {[%clk
0:00:16.3]} 40... Bxb6 {[%clk 0:00:09]} 41. axb6 {[%clk 0:00:13.3]} 41... Rxb6
{[%clk 0:00:08.4]} 42. Kf3 {[%clk 0:00:11.6]} 42... Rb3+ {[%clk 0:00:08]} 43.
Kf2 {[%clk 0:00:11.9]} 43... g6 {[%clk 0:00:08]} 44. Re8+ {[%clk 0:00:11.6]}
44... Kf6 {[%clk 0:00:07.8]} 45. h3 {[%clk 0:00:11.5]} 45... h4 {[%clk
0:00:07.4]} 46. Rc8 {[%clk 0:00:10.3]} 46... Kg5 {[%clk 0:00:06.9]} 47. Rf8
{[%clk 0:00:09.6]} 47... f5 {[%clk 0:00:06.2]} 48. exf5 {[%clk 0:00:05.8]} 48...
gxf5 {[%clk 0:00:07.1]} 49. Rh8 {[%clk 0:00:05.9]} 49... Rb2+ {[%clk 0:00:05.6]}
50. Kf1 {[%clk 0:00:03.9]} 50... Kf4 {[%clk 0:00:05.2]} 51. Rxh4+ {[%clk
0:00:03.8]} 51... Kg3 {[%clk 0:00:05.4]} 52. Rh5 {[%clk 0:00:04.3]} 52... Rf2+
{[%clk 0:00:03.2]} 53. Ke1 {[%clk 0:00:02.4]} 53... e4 {[%clk 0:00:01.6]} 54.
Rg5+ {[%clk 0:00:02.5]} 54... Kf4 {[%clk 0:00:01.7]} 55. h4 {[%clk 0:00:02.8]}
1-0

[Event "Late-Titled-Tuesday-Blitz-September-05-2023"]
[Site "Chess.com"]
[Date "2023.09.05"]
[Round "3"]
[White "Korchmar_Vasiliy"]
[Black "Payyappat"]
[Result "1-0"]
[WhiteElo "2707"]
[BlackElo "2478"]
[TimeControl "180+1"]
[EndTime "14:30:00 PDT"]
[Termination "Korchmar_Vasiliy won by resignation"]

1. e4 {[%clk 0:03:00.9]} 1... c6 {[%clk 0:02:59.1]} 2. d4 {[%clk 0:02:59.8]}
2... d5 {[%clk 0:03:00]} 3. exd5 {[%clk 0:03:00]} 3... cxd5 {[%clk 0:03:00.9]}
4. Bd3 {[%clk 0:03:00.7]} 4... Nc6 {[%clk 0:03:00.1]} 5. c3 {[%clk 0:03:01.1]}
5... Qc7 {[%clk 0:03:00.1]} 6. h3 {[%clk 0:03:00.2]} 6... g6 {[%clk 0:02:59.9]}
7. Nf3 {[%clk 0:03:00.3]} 7... Bf5 {[%clk 0:02:59]} 8. O-O {[%clk 0:03:00.9]}
8... Nf6 {[%clk 0:02:57.7]} 9. Re1 {[%clk 0:03:00.3]} 9... e6 {[%clk 0:02:55.8]}
10. Bg5 {[%clk 0:02:58.2]} 10... Be7 {[%clk 0:02:48.3]} 11. Bh6 {[%clk
0:02:57.5]} 11... O-O-O {[%clk 0:02:45.9]} 12. a4 {[%clk 0:02:52.5]} 12... Bxd3
{[%clk 0:02:40]} 13. Qxd3 {[%clk 0:02:53.4]} 13... Ne4 {[%clk 0:02:40.2]} 14.
Nbd2 {[%clk 0:02:42.8]} 14... f5 {[%clk 0:02:38.4]} 15. a5 {[%clk 0:02:29.9]}
15... g5 {[%clk 0:02:35.9]} 16. a6 {[%clk 0:02:27.2]} 16... Rhg8 {[%clk
0:02:07.9]} 17. axb7+ {[%clk 0:02:26.3]} 17... Kb8 {[%clk 0:02:06.7]} 18. Ra6
{[%clk 0:02:17.8]} 18... Rg6 {[%clk 0:01:45.7]} 19. Rxc6 {[%clk 0:02:17.2]}
19... Qxc6 {[%clk 0:01:44.8]} 20. Ne5 {[%clk 0:02:17.7]} 20... Qxb7 {[%clk
0:01:41.4]} 21. Nxg6 {[%clk 0:02:17.5]} 21... hxg6 {[%clk 0:01:42.3]} 22. Bg7
{[%clk 0:02:13.6]} 22... Bd6 {[%clk 0:01:41]} 23. Be5 {[%clk 0:02:08.5]} 23...
Bxe5 {[%clk 0:01:41.1]} 24. dxe5 {[%clk 0:02:09.4]} 24... Nc5 {[%clk 0:01:21.8]}
25. Qe3 {[%clk 0:02:06.5]} 25... Qe7 {[%clk 0:01:17.6]} 26. Ra1 {[%clk
0:02:04.1]} 26... Rc8 {[%clk 0:01:14.9]} 27. c4 {[%clk 0:01:45.4]} 27... Ne4
{[%clk 0:00:53.3]} 28. cxd5 {[%clk 0:01:38.1]} 28... exd5 {[%clk 0:00:52.9]} 29.
Nb3 {[%clk 0:01:27.3]} 29... Rc7 {[%clk 0:00:40.2]} 30. Nd4 {[%clk 0:01:22.7]}
30... Qxe5 {[%clk 0:00:19.4]} 31. Rxa7 {[%clk 0:01:22.5]} 31... f4 {[%clk
0:00:15.2]} 32. Qa3 {[%clk 0:00:41]} 32... Rxa7 {[%clk 0:00:14]} 33. Nc6+ {[%clk
0:00:40.7]} 33... Kc7 {[%clk 0:00:14]} 34. Nxe5 {[%clk 0:00:41]} 34... Rxa3
{[%clk 0:00:14]} 35. bxa3 {[%clk 0:00:41.9]} 35... d4 {[%clk 0:00:13.8]} 36. Kf1
{[%clk 0:00:34.6]} 36... Kd6 {[%clk 0:00:14.1]} 37. Nd3 {[%clk 0:00:24.5]} 37...
Kd5 {[%clk 0:00:14.1]} 38. Ke2 {[%clk 0:00:11.6]} 38... Kc4 {[%clk 0:00:14.3]}
39. f3 {[%clk 0:00:11.5]} 39... Nc3+ {[%clk 0:00:14]} 40. Kd2 {[%clk 0:00:11.1]}
40... Nb1+ {[%clk 0:00:14.6]} 41. Ke2 {[%clk 0:00:10.8]} 41... Nxa3 {[%clk
0:00:14.3]} 42. h4 {[%clk 0:00:11.4]} 42... gxh4 {[%clk 0:00:13.5]} 43. Nxf4
{[%clk 0:00:11.8]} 43... g5 {[%clk 0:00:13.5]} 44. Ne6 {[%clk 0:00:11.9]} 44...
Kc3 {[%clk 0:00:12.2]} 45. Nxg5 {[%clk 0:00:12.2]} 45... Kc2 {[%clk 0:00:08.4]}
46. Ne4 {[%clk 0:00:08.7]} 46... Nc4 {[%clk 0:00:07.2]} 47. f4 {[%clk 0:00:07]}
47... Ne3 {[%clk 0:00:05.7]} 48. Kf3 {[%clk 0:00:05.3]} 48... Nf5 {[%clk
0:00:04.1]} 49. Kg4 {[%clk 0:00:04.4]} 49... Ng3 {[%clk 0:00:04.4]} 50. Nf2
{[%clk 0:00:02.5]} 50... Kd2 {[%clk 0:00:01.6]} 51. f5 {[%clk 0:00:02.8]} 51...
Ke3 {[%clk 0:00:01.6]} 52. f6 {[%clk 0:00:03]} 52... Kxf2 {[%clk 0:00:01.9]} 53.
f7 {[%clk 0:00:03.6]} 53... d3 {[%clk 0:00:02.3]} 54. f8=Q+ {[%clk 0:00:04.1]}
54... Ke2 {[%clk 0:00:02.8]} 55. Qe7+ {[%clk 0:00:04.2]} 55... Kf2 {[%clk
0:00:03.3]} 56. Qc5+ {[%clk 0:00:04.1]} 56... Kxg2 {[%clk 0:00:03.6]} 57. Qd5+
{[%clk 0:00:03]} 57... Kf2 {[%clk 0:00:04]} 58. Qxd3 {[%clk 0:00:03.1]} 58... h3
{[%clk 0:00:04.2]} 59. Qxg3+ {[%clk 0:00:03.2]} 59... Ke2 {[%clk 0:00:04.9]} 60.
Qxh3 {[%clk 0:00:03.9]} 60... Kd2 {[%clk 0:00:05]} 61. Kf4 {[%clk 0:00:04.3]}
61... Kc2 {[%clk 0:00:05.7]} 62. Ke4 {[%clk 0:00:04.8]} 1-0

[Event "Late-Titled-Tuesday-Blitz-September-05-2023"]
[Site "Chess.com"]
[Date "2023.09.05"]
[Round "3"]
[White "djano"]
[Black "gunslinger222"]
[Result "1-0"]
[WhiteElo "2625"]
[BlackElo "2450"]
[TimeControl "180+1"]
[EndTime "14:30:06 PDT"]
[Termination "djano won on time"]

1. e4 {[%clk 0:03:00.9]} 1... e6 {[%clk 0:02:57.3]} 2. d4 {[%clk 0:02:59.7]}
2... d5 {[%clk 0:02:58]} 3. Bd3 {[%clk 0:03:00.2]} 3... dxe4 {[%clk 0:02:57.7]}
4. Bxe4 {[%clk 0:03:01.1]} 4... Nf6 {[%clk 0:02:58.3]} 5. Bf3 {[%clk 0:03:01.8]}
5... Nbd7 {[%clk 0:02:58.6]} 6. Ne2 {[%clk 0:03:00.5]} 6... Bd6 {[%clk
0:02:58.1]} 7. O-O {[%clk 0:02:54.6]} 7... e5 {[%clk 0:02:57.7]} 8. Ng3 {[%clk
0:02:54.3]} 8... O-O {[%clk 0:02:56.5]} 9. Nc3 {[%clk 0:02:50.3]} 9... exd4
{[%clk 0:02:53.2]} 10. Qxd4 {[%clk 0:02:43]} 10... Ne5 {[%clk 0:02:49.8]} 11.
Be2 {[%clk 0:02:41]} 11... Bg4 {[%clk 0:02:45]} 12. Nb5 {[%clk 0:02:27.4]} 12...
Bxe2 {[%clk 0:02:40.3]} 13. Nxe2 {[%clk 0:02:28.3]} 13... Nc6 {[%clk 0:02:27.9]}
14. Qh4 {[%clk 0:02:24.9]} 14... Be7 {[%clk 0:02:06.4]} 15. Qg3 {[%clk
0:02:15.2]} 15... a6 {[%clk 0:01:56.6]} 16. Nbc3 {[%clk 0:01:57.8]} 16... Bd6
{[%clk 0:01:53.6]} 17. Qh4 {[%clk 0:01:53.6]} 17... Ne5 {[%clk 0:01:38.9]} 18.
Bg5 {[%clk 0:01:48.9]} 18... Ng6 {[%clk 0:01:36.2]} 19. Qd4 {[%clk 0:01:45.9]}
19... Be7 {[%clk 0:01:23.2]} 20. Rad1 {[%clk 0:01:45.2]} 20... Qxd4 {[%clk
0:01:19.4]} 21. Nxd4 {[%clk 0:01:44.9]} 21... h6 {[%clk 0:01:16.6]} 22. Bc1
{[%clk 0:01:36.5]} 22... Rfd8 {[%clk 0:01:09.9]} 23. Nf5 {[%clk 0:01:34.4]}
23... Bf8 {[%clk 0:01:10.2]} 24. Ne3 {[%clk 0:01:29.5]} 24... b5 {[%clk
0:01:07.8]} 25. a3 {[%clk 0:01:26.1]} 25... Nf4 {[%clk 0:01:04]} 26. g3 {[%clk
0:01:22.4]} 26... Ne6 {[%clk 0:00:59.6]} 27. Kg2 {[%clk 0:01:22.9]} 27... c6
{[%clk 0:00:57.5]} 28. h3 {[%clk 0:01:13.1]} 28... a5 {[%clk 0:00:56.5]} 29. Ne2
{[%clk 0:01:10.3]} 29... Ne4 {[%clk 0:00:47.6]} 30. f3 {[%clk 0:01:06.1]} 30...
Nf6 {[%clk 0:00:45.4]} 31. Nf5 {[%clk 0:00:59.2]} 31... Rxd1 {[%clk 0:00:41.9]}
32. Rxd1 {[%clk 0:00:58.5]} 32... Rd8 {[%clk 0:00:42.3]} 33. Rxd8 {[%clk
0:00:57.1]} 33... Nxd8 {[%clk 0:00:43.2]} 34. Be3 {[%clk 0:00:55.3]} 34... h5
{[%clk 0:00:42.2]} 35. Bb6 {[%clk 0:00:55.1]} 35... Nb7 {[%clk 0:00:39.4]} 36.
Nfd4 {[%clk 0:00:55.3]} 36... Nd5 {[%clk 0:00:30.4]} 37. Ba7 {[%clk 0:00:48.5]}
37... b4 {[%clk 0:00:24.8]} 38. a4 {[%clk 0:00:42.5]} 38... c5 {[%clk
0:00:22.4]} 39. Nb3 {[%clk 0:00:35.5]} 39... Ne3+ {[%clk 0:00:21.6]} 40. Kf2
{[%clk 0:00:35.9]} 40... Nxc2 {[%clk 0:00:21.9]} 41. Nf4 {[%clk 0:00:33.5]}
41... g6 {[%clk 0:00:20.8]} 42. Ke2 {[%clk 0:00:31.8]} 42... c4 {[%clk
0:00:20.6]} 43. Nd2 {[%clk 0:00:31.4]} 43... Bc5 {[%clk 0:00:18.5]} 44. Bxc5
{[%clk 0:00:28.4]} 44... Nxc5 {[%clk 0:00:19.4]} 45. Nxc4 {[%clk 0:00:29.2]}
45... Nxa4 {[%clk 0:00:18.9]} 46. Nd3 {[%clk 0:00:27.8]} 46... Nd4+ {[%clk
0:00:17.1]} 47. Ke3 {[%clk 0:00:27.4]} 47... Nc6 {[%clk 0:00:17.4]} 48. Ke4
{[%clk 0:00:27.1]} 48... b3 {[%clk 0:00:12.1]} 49. Kd5 {[%clk 0:00:25.7]} 49...
Ne7+ {[%clk 0:00:12.4]} 50. Ke5 {[%clk 0:00:23.2]} 50... Nc6+ {[%clk 0:00:10.7]}
51. Kd5 {[%clk 0:00:23.4]} 51... Ne7+ {[%clk 0:00:11]} 52. Ke4 {[%clk 0:00:20]}
52... Nc6 {[%clk 0:00:10.8]} 53. Nd2 {[%clk 0:00:17.1]} 53... Nb6 {[%clk
0:00:07.5]} 54. Nxb3 {[%clk 0:00:17.4]} 54... a4 {[%clk 0:00:07.7]} 55. Nd4
{[%clk 0:00:17.4]} 55... Na5 {[%clk 0:00:05.9]} 56. Nb5 {[%clk 0:00:15.5]} 56...
Nac4 {[%clk 0:00:05.8]} 57. Nc3 {[%clk 0:00:15.3]} 57... Kg7 {[%clk 0:00:05.5]}
58. Kd4 {[%clk 0:00:15.3]} 58... a3 {[%clk 0:00:04.1]} 59. bxa3 {[%clk
0:00:14.7]} 59... Nxa3 {[%clk 0:00:05]} 60. Ne4 {[%clk 0:00:14.1]} 60... Nc2+
{[%clk 0:00:04]} 61. Kc5 {[%clk 0:00:12.9]} 61... Nd7+ {[%clk 0:00:04.3]} 62.
Kd6 {[%clk 0:00:12.6]} 62... Nf6 {[%clk 0:00:04.6]} 63. Ke5 {[%clk 0:00:11.7]}
63... Nxe4 {[%clk 0:00:04]} 64. Kxe4 {[%clk 0:00:12.6]} 64... Na3 {[%clk
0:00:02.5]} 65. f4 {[%clk 0:00:13.5]} 65... Nb5 {[%clk 0:00:01.9]} 66. Nf2
{[%clk 0:00:14.3]} 66... Nd6+ {[%clk 0:00:01.7]} 67. Kd5 {[%clk 0:00:14.2]}
67... Nf5 {[%clk 0:00:01.6]} 68. Ne4 {[%clk 0:00:14.9]} 1-0